bitfinex/quotes_SOLUSD_20241102
["timestamp","ask_amount","ask_price","bid_price","bid_amount"]
[1730571949875,3.64459628,163.32,163.28,17.90724683]
[1730571950087,11.5342813,163.37,163.31,11.5342813]
[1730571950274,19.72537072,163.36,163.31,11.5342813]
[1730571950477,3.64467936,163.35,163.3,11.5342813]
[1730571950682,16.08078403,163.34,163.29,17.90466799]
[1730571950876,4.54650273,163.33,163.29,17.90466799]
[1730571951189,3.64514505,163.32,163.29,17.90466799]
[1730571951706,3.64514505,163.31,163.29,17.90466799]
[1730571951990,11.5342813,163.34,163.29,17.90466799]
[1730571952169,8.19309402,163.33,163.29,17.90466799]
[1730571952476,3.64571046,163.32,163.29,17.90466799]
[1730571952677,3.64571046,163.31,163.29,17.90466799]
[1730571952989,11.5342813,163.35,163.29,17.90466799]
[1730571953188,8.19436786,163.34,163.29,17.90466799]
[1730571953392,8.19436786,163.33,163.29,17.90466799]
[1730571953691,3.64592313,163.32,163.29,17.90466799]
[1730571953894,3.64592313,163.31,163.29,17.90466799]
[1730571954192,11.5342813,163.35,163.29,17.90466799]
[1730571954375,8.19650554,163.34,163.29,17.90466799]
[1730571954575,8.19692156,163.33,163.29,17.90466799]
[1730571954779,8.19692156,163.32,163.29,17.90466799]
[1730571954973,3.64590504,163.31,163.29,6.37038669]
[1730571955174,11.5342813,163.33,163.29,6.37038669]
[1730571955376,19.73344739,163.32,163.29,6.37038669]
[1730571955585,8.19916609,163.31,163.29,6.37038669]
[1730571955798,3.64650778,163.3,163.29,6.37038669]
[1730571956988,19.7357771,163.3,163.24,11.5342813]
[1730571957288,8.20256377,163.29,163.26,6.36700521]
[1730571957495,11.5342813,163.29,163.26,6.36700521]
[1730571957875,11.5342813,163.3,163.26,6.36700521]
[1730571958080,8.20192329,163.29,163.26,6.36700521]
[1730571958288,17.6576813,163.31,163.26,6.36700521]
[1730571958496,8.20196178,163.3,163.26,6.36700521]
[1730571958797,8.20196178,163.29,163.26,6.36700521]
[1730571959097,11.5342813,163.31,163.26,6.36700521]
[1730571959298,8.20206386,163.3,163.26,6.36700521]
[1730571959596,8.20206386,163.29,163.26,6.36700521]
[1730571959791,17.6572813,163.32,163.26,17.90128651]
[1730571960101,6.0768,163.35,163.26,17.90128651]
[1730571960102,8.2015558,163.31,163.29,11.5342813]
[1730571960291,17.6560813,163.35,163.3,11.5342813]
[1730571960598,8.20294423,163.34,163.3,11.5342813]
[1730571960778,8.20294423,163.33,163.29,11.5342813]
[1730571960979,8.20294423,163.32,163.29,11.5342813]
[1730571961287,4.55686313,163.31,163.29,11.5342813]
[1730571961494,17.6560813,163.35,163.29,11.5342813]
[1730571961689,4.55672871,163.34,163.29,11.5342813]
[1730571961894,8.20182052,163.33,163.29,11.5342813]
[1730571962082,8.20182052,163.32,163.31,11.5342813]
[1730571962884,8.20182052,163.32,163.3,11.5342813]
[1730571963088,8.20182052,163.31,163.29,11.5342813]
[1730571963289,11.5342813,163.33,163.28,11.5342813]
[1730571963591,8.20170018,163.32,163.27,35.3111653]
[1730571963782,8.20170018,163.31,163.27,23.776884]
[1730571964089,19.7363986,163.3,163.26,6.36700521]
[1730571964289,8.2021173,163.29,163.26,6.36700521]
[1730571964499,11.5342813,163.3,163.26,6.36700521]
[1730571964678,3.64489215,163.29,163.26,6.36700521]
[1730571964881,8.20263006,163.29,163.26,6.36700521]
[1730571965102,11.5342813,163.31,163.26,6.36700521]
[1730571965291,8.20347523,163.3,163.26,6.36700521]
[1730571965606,8.20347523,163.29,163.26,6.36700521]
[1730571965895,11.5342813,163.31,163.26,6.36700521]
[1730571966106,8.20352462,163.3,163.26,6.36700521]
[1730571966280,8.20352462,163.29,163.26,6.36700521]
[1730571966483,11.5342813,163.31,163.26,6.36700521]
[1730571966687,19.73728687,163.3,163.26,6.36700521]
[1730571966894,4.55800903,163.29,163.26,6.36700521]
[1730571967097,11.5342813,163.3,163.26,6.36700521]
[1730571967284,4.55791149,163.29,163.26,6.36700521]
[1730571967591,46.2371252,163.36,163.27,11.5342813]
[1730571967592,11.5342813,163.33,163.27,11.5342813]
[1730571967778,8.20298671,163.32,163.27,11.5342813]
[1730571967978,8.20298671,163.31,163.27,11.5342813]
[1730571968182,8.20298671,163.3,163.27,11.5342813]
[1730571968405,4.55792192,163.29,163.27,11.5342813]
[1730571968603,17.6571813,163.33,163.27,11.5342813]
[1730571968808,8.20198518,163.32,163.27,11.5342813]
[1730571969007,8.20198518,163.31,163.28,11.5342813]
[1730571969304,17.6563813,163.35,163.3,11.5342813]
[1730571969500,15.17928736,163.34,163.29,11.5342813]
[1730571969713,3.64500606,163.33,163.29,11.5342813]
[1730571970009,3.64500606,163.32,163.29,11.5342813]
[1730571970214,17.6564813,163.34,163.29,11.5342813]
[1730571970400,3.6442262,163.33,163.29,11.5342813]
[1730571970593,3.6442262,163.32,163.29,11.5342813]
[1730571970794,11.5342813,163.35,163.29,11.5342813]
[1730571970994,3.64309674,163.34,163.29,11.5342813]
[1730571971208,3.64309674,163.33,163.29,11.5342813]
[1730571971390,3.64309674,163.32,163.28,11.5342813]
[1730571971590,11.5342813,163.34,163.28,11.5342813]
[1730571971790,3.64255372,163.33,163.28,11.5342813]
[1730571971990,3.64255372,163.32,163.28,11.5342813]
[1730571972213,11.5342813,163.34,163.28,11.5342813]
[1730571972485,3.64243263,163.33,163.28,11.5342813]
[1730571972708,3.64243263,163.32,163.28,11.5342813]
[1730571972917,11.5342813,163.34,163.28,11.5342813]
[1730571973092,3.64256372,163.33,163.28,11.5342813]
[1730571973296,3.64256372,163.32,163.28,11.5342813]
[1730571973497,11.5342813,163.34,163.28,11.5342813]
[1730571973705,3.64255872,163.33,163.28,11.5342813]
[1730571973904,3.64255872,163.32,163.28,11.5342813]
[1730571974114,11.5342813,163.34,163.28,11.5342813]
[1730571974412,3.64202107,163.33,163.28,11.5342813]
[1730571974613,3.64202107,163.32,163.28,11.5342813]
[1730571974815,11.5342813,163.34,163.29,11.5342813]
[1730571975016,6.1221,163.35,163.29,11.5342813]
[1730571975017,3.64180926,163.33,163.29,11.5342813]
[1730571975197,3.64180926,163.32,163.29,11.5342813]
[1730571975515,11.5342813,163.36,163.3,11.5342813]
[1730571975818,3.64135313,163.35,163.3,11.5342813]
[1730571976016,3.64135313,163.34,163.31,11.5342813]
[1730571976221,3.64135313,163.33,163.31,11.5342813]
[1730571976515,3.64135313,163.32,163.31,11.5342813]
[1730571978409,3.64135313,163.32,163.3,11.5342813]
[1730571978606,17.6557813,163.36,163.3,11.5342813]
[1730571978804,3.64076658,163.35,163.3,11.5342813]
[1730571978992,3.64076658,163.34,163.3,11.5342813]
[1730571979196,3.64076658,163.33,163.3,11.5342813]
[1730571979397,3.64076658,163.32,163.3,11.5342813]
[1730571979610,17.6557813,163.36,163.3,11.5342813]
[1730571979821,15.2753,163.37,163.32,11.5342813]
[1730571979822,3.6409301,163.35,163.32,11.5342813]
[1730571979993,3.6409301,163.34,163.32,11.5342813]
[1730571980322,17.6549813,163.38,163.32,11.5342813]
[1730571980503,11.5342813,163.37,163.32,11.5342813]
[1730571980943,3.64174347,163.36,163.32,11.5342813]
[1730571981218,3.64174347,163.35,163.31,11.5342813]
[1730571981427,11.5342813,163.37,163.31,11.5342813]
[1730571981428,3.64174347,163.34,163.31,11.5342813]
[1730571981630,11.5342813,163.36,163.31,11.5342813]
[1730571981915,3.64223308,163.35,163.31,11.5342813]
[1730571982117,11.5342813,163.36,163.31,11.5342813]
[1730571982310,3.64215088,163.35,163.31,11.5342813]
[1730571982501,3.64215088,163.34,163.31,11.5342813]
[1730571982699,11.5342813,163.35,163.31,23.776884]
[1730571983010,3.64169375,163.34,163.31,23.776884]
[1730571983203,11.5342813,163.35,163.31,23.776884]
[1730571983403,3.64264429,163.34,163.31,23.776884]
[1730571983604,11.5342813,163.35,163.31,23.776884]
[1730571983804,3.64334703,163.34,163.31,23.776884]
[1730571984000,11.5342813,163.36,163.31,23.776884]
[1730571984200,11.5342813,163.33,163.28,17.89811027]
[1730571984412,11.5342813,163.32,163.28,6.36382897]
[1730571984715,15.17746953,163.32,163.28,6.36382897]
[1730571984920,3.64311037,163.31,163.28,6.36382897]
[1730571985227,11.5342813,163.3,163.28,6.36382897]
[1730571985400,11.5342813,163.29,163.28,6.36382897]
[1730571986404,15.17849383,163.29,163.28,6.36382897]
[1730571986915,21.30249383,163.29,163.23,1.05652606]
[1730571987100,11.5342813,163.26,163.25,6.36761356]
[1730571987301,11.5342813,163.26,163.2,11.5342813]
[1730571987523,11.5342813,163.25,163.2,11.5342813]
[1730571987717,11.5342813,163.25,163.21,6.36785896]
[1730571989216,3.6403064,163.24,163.21,6.36785896]
[1730571989406,11.5342813,163.24,163.21,6.36785896]
[1730571989619,11.5342813,163.23,163.21,6.36785896]
[1730571991624,11.5342813,163.22,163.16,11.5342813]
[1730571991820,11.5342813,163.21,163.18,6.3675702]
[1730571992318,11.5342813,163.22,163.18,6.3675702]
[1730571992924,11.5342813,163.23,163.18,6.3675702]
[1730571994003,6.1261,163.24,163.18,6.3675702]
[1730571994004,11.5342813,163.22,163.18,6.3675702]
[1730571997010,11.5342813,163.23,163.18,6.3675702]
[1730571997217,11.5342813,163.24,163.18,17.9018515]
[1730571997405,11.5342813,163.25,163.2,11.5342813]
[1730571997610,11.5342813,163.25,163.19,11.5342813]
[1730571998329,11.5342813,163.24,163.19,11.5342813]
[1730571998717,17.6598813,163.25,163.19,11.5342813]
[1730571999117,15.4327,163.28,163.2,11.5342813]
[1730571999118,11.5342813,163.26,163.2,11.5342813]
[1730572000529,17.6594813,163.26,163.2,11.5342813]
[1730572002812,11.5342813,163.25,163.2,11.5342813]
[1730572003418,11.5342813,163.25,163.19,41.67784595]
[1730572004510,11.5342813,163.24,163.19,30.14356465]
[1730572004927,11.5342813,163.23,163.19,30.14356465]
[1730572006930,11.5342813,163.24,163.19,30.14356465]
[1730572008036,11.5342813,163.26,163.2,11.5342813]
[1730572008220,11.5342813,163.27,163.21,11.5342813]
[1730572008619,11.5342813,163.26,163.2,11.5342813]
[1730572009737,11.5342813,163.27,163.21,11.5342813]
[1730572010430,11.5342813,163.27,163.22,35.3111653]
[1730572010631,11.5342813,163.28,163.22,11.5342813]
[1730572011228,15.6019,163.32,163.24,11.5342813]
[1730572011229,11.5342813,163.3,163.24,11.5342813]
[1730572011520,11.5342813,163.29,163.24,11.5342813]
[1730572013323,11.5342813,163.3,163.24,11.5342813]
[1730572014331,11.5342813,163.34,163.29,11.5342813]
[1730572014531,11.5342813,163.32,163.27,11.5342813]
[1730572014733,11.5342813,163.32,163.27,23.776884]
[1730572016826,11.5342813,163.32,163.27,11.5342813]
[1730572017921,11.5342813,163.33,163.27,11.5342813]
[1730572018729,11.5342813,163.33,163.28,11.5342813]
[1730572018936,11.5342813,163.34,163.28,11.5342813]
[1730572019542,11.5342813,163.32,163.27,11.5342813]
[1730572021744,11.5342813,163.33,163.28,11.5342813]
[1730572021941,11.5342813,163.35,163.3,11.5342813]
[1730572022151,3.63235889,163.34,163.3,11.5342813]
[1730572022336,11.5342813,163.35,163.3,11.5342813]
[1730572022640,3.63271647,163.34,163.3,11.5342813]
[1730572022948,11.5342813,163.35,163.3,11.5342813]
[1730572023425,11.5342813,163.34,163.29,11.5342813]
[1730572025538,11.5342813,163.32,163.27,11.5342813]
[1730572025731,11.5342813,163.32,163.28,23.776884]
[1730572026046,11.5342813,163.32,163.27,11.5342813]
[1730572026437,11.5342813,163.33,163.27,11.5342813]
[1730572026828,11.5342813,163.33,163.28,11.5342813]
[1730572027834,11.5342813,163.34,163.28,11.5342813]
[1730572028338,11.5342813,163.34,163.29,11.5342813]
[1730572028541,11.5342813,163.35,163.29,11.5342813]
[1730572028740,3.63556689,163.34,163.29,11.5342813]
[1730572028942,11.5342813,163.35,163.29,11.5342813]
[1730572029135,3.63562428,163.34,163.29,11.5342813]
[1730572029444,11.5342813,163.36,163.3,11.5342813]
[1730572029754,3.63635499,163.35,163.31,11.5342813]
[1730572029942,3.63635499,163.34,163.31,11.5342813]
[1730572030156,11.5342813,163.36,163.31,11.5342813]
[1730572030331,3.63619663,163.35,163.31,11.5342813]
[1730572030534,3.63619663,163.34,163.3,11.5342813]
[1730572030841,11.5342813,163.36,163.3,11.5342813]
[1730572031041,11.5342813,163.34,163.29,11.5342813]
[1730572032045,11.5342813,163.35,163.29,11.5342813]
[1730572032252,3.63626116,163.34,163.29,11.5342813]
[1730572032465,11.5342813,163.35,163.29,11.5342813]
[1730572032637,3.63623286,163.34,163.29,11.5342813]
[1730572032838,11.5342813,163.35,163.29,11.5342813]
[1730572033159,3.63650043,163.34,163.29,11.5342813]
[1730572033328,11.5342813,163.35,163.29,11.5342813]
[1730572033531,3.63643441,163.34,163.29,11.5342813]
[1730572033728,11.5342813,163.35,163.29,11.5342813]
[1730572033928,3.63659212,163.34,163.29,11.5342813]
[1730572034233,11.5342813,163.35,163.29,11.5342813]
[1730572034552,3.63614251,163.34,163.29,11.5342813]
[1730572034743,11.5342813,163.35,163.29,11.5342813]
[1730572034950,3.63619983,163.34,163.29,11.5342813]
[1730572035145,11.5342813,163.35,163.29,11.5342813]
[1730572035345,15.17072157,163.34,163.29,11.5342813]
[1730572035546,11.5342813,163.35,163.3,23.776884]
[1730572035742,3.63657059,163.34,163.3,35.3111653]
[1730572035943,11.5342813,163.37,163.31,11.5342813]
[1730572036146,3.63663007,163.36,163.31,11.5342813]
[1730572036350,11.5342813,163.38,163.32,11.5342813]
[1730572036645,3.63585614,163.37,163.33,11.5342813]
[1730572036844,3.63585614,163.36,163.33,11.5342813]
[1730572037052,11.5342813,163.39,163.33,11.5342813]
[1730572037234,3.63537585,163.38,163.33,11.5342813]
[1730572037436,11.5342813,163.39,163.33,11.5342813]
[1730572037437,3.63537585,163.37,163.33,11.5342813]
[1730572037651,11.5342813,163.39,163.33,11.5342813]
[1730572037860,11.5342813,163.38,163.33,11.5342813]
[1730572038158,3.63550757,163.37,163.33,11.5342813]
[1730572038344,11.5342813,163.38,163.33,11.5342813]
[1730572038542,3.6352021,163.37,163.33,11.5342813]
[1730572038761,11.5342813,163.38,163.33,11.5342813]
[1730572039058,3.63518123,163.37,163.33,11.5342813]
[1730572039357,11.5342813,163.38,163.33,11.5342813]
[1730572039541,3.63489746,163.37,163.33,11.5342813]
[1730572039742,11.5342813,163.38,163.33,11.5342813]
[1730572039956,3.6348206,163.37,163.33,11.5342813]
[1730572040159,11.5342813,163.38,163.33,11.5342813]
[1730572040347,3.6341612,163.37,163.33,11.5342813]
[1730572040548,11.5342813,163.38,163.33,11.5342813]
[1730572040742,3.63467371,163.37,163.33,11.5342813]
[1730572040942,11.5342813,163.38,163.33,11.5342813]
[1730572041156,3.63454521,163.37,163.33,11.5342813]
[1730572041347,11.5342813,163.38,163.33,11.5342813]
[1730572041548,3.63423842,163.37,163.33,11.5342813]
[1730572041739,3.63423842,163.37,163.32,11.5342813]
[1730572041940,11.5342813,163.37,163.31,11.5342813]
[1730572042153,11.5342813,163.37,163.32,23.776884]
[1730572044251,11.5342813,163.35,163.31,23.776884]
[1730572044767,11.5342813,163.35,163.3,23.776884]
[1730572047061,6.1211,163.37,163.3,23.776884]
[1730572047268,11.5342813,163.34,163.3,23.776884]
[1730572047567,11.5342813,163.33,163.29,6.36486305]
[1730572048839,11.5342813,163.35,163.3,11.5342813]
[1730572049045,3.63809639,163.34,163.32,11.5342813]
[1730572049247,11.5342813,163.38,163.32,11.5342813]
[1730572049444,3.63910554,163.37,163.33,11.5342813]
[1730572049650,3.63910554,163.36,163.32,11.5342813]
[1730572049856,11.5342813,163.37,163.32,23.776884]
[1730572050057,11.5342813,163.35,163.3,11.5342813]
[1730572050454,11.5342813,163.36,163.3,11.5342813]
[1730572051448,3.64099435,163.35,163.3,11.5342813]
[1730572051872,11.5342813,163.36,163.3,11.5342813]
[1730572052071,3.64177908,163.35,163.31,11.5342813]
[1730572052367,11.5342813,163.36,163.31,11.5342813]
[1730572052569,3.64190899,163.35,163.31,11.5342813]
[1730572052870,11.5342813,163.36,163.31,11.5342813]
[1730572053168,15.17735513,163.35,163.3,23.776884]
[1730572053369,3.64522717,163.34,163.3,23.776884]
[1730572053669,11.5342813,163.35,163.3,23.776884]
[1730572053870,3.64493446,163.34,163.3,23.776884]
[1730572054058,3.64493446,163.33,163.3,23.776884]
[1730572054256,11.5342813,163.35,163.3,23.776884]
[1730572054458,3.64616212,163.34,163.3,23.776884]
[1730572054768,3.64616212,163.33,163.3,35.3111653]
[1730572054967,11.5342813,163.36,163.3,35.3111653]
[1730572055152,3.64562242,163.35,163.3,35.3111653]
[1730572055351,15.17990372,163.35,163.3,23.776884]
[1730572055550,3.64562242,163.34,163.3,23.776884]
[1730572055745,3.64562242,163.33,163.3,23.776884]
[1730572055962,11.5342813,163.35,163.3,23.776884]
[1730572056155,3.64755272,163.34,163.3,23.776884]
[1730572056352,3.64755272,163.33,163.3,23.776884]
[1730572056652,3.64755272,163.32,163.3,23.776884]
[1730572056862,11.5342813,163.35,163.3,23.776884]
[1730572057062,3.64887,163.34,163.3,23.776884]
[1730572057262,3.64887,163.33,163.3,23.776884]
[1730572057456,3.64887,163.32,163.3,23.776884]
[1730572057674,11.5342813,163.35,163.3,23.776884]
[1730572057847,3.64963177,163.34,163.3,23.776884]
[1730572058047,3.64963177,163.33,163.3,23.776884]
[1730572058353,3.64963177,163.32,163.3,23.776884]
[1730572058553,11.5342813,163.35,163.3,23.776884]
[1730572058777,3.65041269,163.34,163.3,23.776884]
[1730572058971,11.5342813,163.34,163.3,23.776884]
[1730572059284,15.1846935,163.33,163.29,6.36561113]
[1730572059474,3.6504122,163.32,163.29,6.36561113]
[1730572059658,3.6504122,163.31,163.29,6.36561113]
[1730572059860,11.5342813,163.33,163.29,6.36561113]
[1730572060063,3.6511855,163.32,163.29,6.36561113]
[1730572060267,3.6511855,163.31,163.29,6.36561113]
[1730572060451,11.5342813,163.34,163.29,6.36561113]
[1730572060656,3.65153897,163.33,163.29,6.36561113]
[1730572060868,3.65153897,163.32,163.29,6.36561113]
[1730572061177,3.65153897,163.31,163.29,6.36561113]
[1730572061369,11.5342813,163.37,163.3,35.3111653]
[1730572061570,15.18643828,163.36,163.31,11.5342813]
[1730572061767,3.65215698,163.35,163.3,35.3111653]
[1730572061959,3.65215698,163.34,163.3,35.3111653]
[1730572062163,3.65215698,163.33,163.3,35.3111653]
[1730572062368,3.65215698,163.32,163.3,35.3111653]
[1730572062572,11.5342813,163.36,163.3,35.3111653]
[1730572062880,3.65261581,163.35,163.3,35.3111653]
[1730572063173,3.65261599,163.34,163.3,35.3111653]
[1730572063553,3.65261599,163.33,163.3,35.3111653]
[1730572063877,3.65261599,163.32,163.3,35.3111653]
[1730572064065,11.5342813,163.36,163.3,35.3111653]
[1730572064367,3.65292328,163.35,163.3,35.3111653]
[1730572064569,3.65292328,163.34,163.3,35.3111653]
[1730572064772,3.65292328,163.33,163.3,35.3111653]
[1730572064987,3.65292328,163.32,163.3,35.3111653]
[1730572065189,11.5342813,163.38,163.31,11.5342813]
[1730572065375,3.6532121,163.37,163.34,11.5342813]
[1730572065558,3.6532121,163.36,163.34,11.5342813]
[1730572065751,3.6532121,163.35,163.33,11.5342813]
[1730572066057,3.6532121,163.34,163.33,35.3111653]
[1730572066578,3.65372248,163.34,163.33,35.3111653]
[1730572069276,11.5342813,163.39,163.33,35.3111653]
[1730572069461,15.18704483,163.38,163.33,35.3111653]
[1730572069660,3.65276353,163.37,163.33,35.3111653]
[1730572069860,3.65276353,163.36,163.33,35.3111653]
[1730572070184,3.65276353,163.35,163.33,35.3111653]
[1730572070372,3.65276353,163.34,163.33,35.3111653]
[1730572073184,11.5342813,163.38,163.33,35.3111653]
[1730572073370,3.65316359,163.37,163.33,35.3111653]
[1730572073572,3.65316359,163.36,163.33,35.3111653]
[1730572073781,3.65316359,163.35,163.33,35.3111653]
[1730572073990,27.8941813,163.41,163.35,23.776884]
[1730572074174,27.8941813,163.41,163.36,11.5342813]
[1730572074484,15.18801302,163.4,163.35,35.3111653]
[1730572074782,3.65373172,163.39,163.35,35.3111653]
[1730572075090,3.65373172,163.38,163.35,35.3111653]
[1730572075267,3.65373172,163.37,163.35,35.3111653]
[1730572075589,3.65373172,163.36,163.35,23.776884]
[1730572077575,11.5342813,163.39,163.35,23.776884]
[1730572077779,3.65184911,163.36,163.35,23.776884]
[1730572079885,3.65184911,163.36,163.34,23.776884]
[1730572080189,11.5342813,163.39,163.34,23.776884]
[1730572080500,15.18520156,163.38,163.34,23.776884]
[1730572080678,3.65092026,163.37,163.34,23.776884]
[1730572080987,3.65092026,163.36,163.34,23.776884]
[1730572081163,11.5342813,163.38,163.34,23.776884]
[1730572081368,15.18546935,163.37,163.32,23.776884]
[1730572081585,3.65118805,163.36,163.32,23.776884]
[1730572081886,3.65118805,163.35,163.32,23.776884]
[1730572082189,11.5342813,163.37,163.32,23.776884]
[1730572082493,3.65024308,163.36,163.32,23.776884]
[1730572082677,3.65024308,163.35,163.32,23.776884]
[1730572082883,11.5342813,163.37,163.32,35.3111653]
[1730572083184,3.65030449,163.36,163.32,35.3111653]
[1730572083382,11.5342813,163.37,163.32,35.3111653]
[1730572083569,3.64994869,163.36,163.32,35.3111653]
[1730572083891,3.64994869,163.35,163.32,35.3111653]
[1730572084088,11.5342813,163.37,163.32,35.3111653]
[1730572084395,3.64925648,163.36,163.32,35.3111653]
[1730572084571,3.64923969,163.35,163.32,35.3111653]
[1730572084773,11.5342813,163.37,163.32,35.3111653]
[1730572084981,3.64927301,163.36,163.32,35.3111653]
[1730572085169,11.5342813,163.37,163.32,35.3111653]
[1730572085371,3.6491031,163.36,163.32,35.3111653]
[1730572085687,11.5342813,163.37,163.32,35.3111653]
[1730572085901,3.64874714,163.36,163.32,35.3111653]
[1730572086074,11.5342813,163.37,163.32,35.3111653]
[1730572086276,3.64859428,163.36,163.32,35.3111653]
[1730572086476,11.5342813,163.37,163.32,35.3111653]
[1730572086679,3.64822842,163.36,163.32,35.3111653]
[1730572086878,11.5342813,163.37,163.32,35.3111653]
[1730572087078,3.64821508,163.36,163.32,35.3111653]
[1730572087278,11.5342813,163.37,163.32,35.3111653]
[1730572087488,3.64806059,163.36,163.32,35.3111653]
[1730572087698,11.5342813,163.37,163.32,35.3111653]
[1730572087992,3.64807124,163.36,163.32,35.3111653]
[1730572088198,11.5342813,163.37,163.32,35.3111653]
[1730572088373,3.64815626,163.36,163.32,35.3111653]
[1730572088567,11.5342813,163.37,163.32,35.3111653]
[1730572088773,3.64824708,163.36,163.32,35.3111653]
[1730572088969,11.5342813,163.37,163.32,35.3111653]
[1730572089175,3.64841618,163.36,163.32,35.3111653]
[1730572089476,11.5342813,163.36,163.31,6.35753357]
[1730572089669,3.64809227,163.35,163.31,6.35753357]
[1730572089875,3.64809227,163.34,163.31,6.35753357]
[1730572090074,11.5342813,163.35,163.31,6.35753357]
[1730572090299,3.64822303,163.34,163.31,6.35753357]
[1730572090599,11.5342813,163.36,163.31,6.35753357]
[1730572090892,3.64822317,163.35,163.31,6.35753357]
[1730572091095,3.64822317,163.34,163.31,6.35753357]
[1730572091299,11.5342813,163.36,163.31,6.35753357]
[1730572091784,3.64838579,163.35,163.31,6.35753357]
[1730572091991,3.64838579,163.34,163.31,17.89181487]
[1730572092293,11.5342813,163.36,163.31,17.89181487]
[1730572092488,3.64844635,163.35,163.31,17.89181487]
[1730572092691,3.64844635,163.34,163.31,17.89181487]
[1730572092885,11.5342813,163.36,163.31,17.89181487]
[1730572093090,3.64845009,163.35,163.31,17.89181487]
[1730572093290,3.64845009,163.34,163.31,6.35753357]
[1730572093494,11.5342813,163.36,163.31,6.35753357]
[1730572093699,3.64798116,163.35,163.31,6.35753357]
[1730572093994,3.64798116,163.34,163.31,6.35753357]
[1730572094184,11.5342813,163.36,163.31,6.35753357]
[1730572094383,3.64841663,163.35,163.31,17.89181487]
[1730572094598,3.64841663,163.34,163.31,17.89181487]
[1730572094778,11.5342813,163.36,163.31,17.89181487]
[1730572094973,3.64842945,163.35,163.31,17.89181487]
[1730572095170,3.64842945,163.34,163.31,17.89181487]
[1730572095383,11.5342813,163.36,163.31,17.89181487]
[1730572095581,3.64855277,163.35,163.31,17.89181487]
[1730572095793,3.64855277,163.34,163.31,17.89181487]
[1730572096097,3.64855277,163.33,163.31,17.89181487]
[1730572096297,11.5342813,163.36,163.31,17.89181487]
[1730572096503,3.64902949,163.35,163.31,17.89181487]
[1730572096680,3.64902949,163.34,163.31,17.89181487]
[1730572096880,11.5342813,163.36,163.31,17.89181487]
[1730572097085,3.6489353,163.35,163.31,17.89181487]
[1730572097382,3.6489353,163.34,163.31,17.89181487]
[1730572097692,3.6489353,163.33,163.31,17.89181487]
[1730572097878,11.5342813,163.37,163.32,23.776884]
[1730572098073,3.64840617,163.36,163.32,23.776884]
[1730572098274,3.64840617,163.35,163.32,23.776884]
[1730572098491,3.64840617,163.34,163.32,23.776884]
[1730572098774,11.5342813,163.37,163.32,23.776884]
[1730572098975,3.64860699,163.36,163.32,35.3111653]
[1730572099176,3.64860699,163.35,163.32,35.3111653]
[1730572099391,11.5342813,163.38,163.32,35.3111653]
[1730572099703,3.64886712,163.37,163.32,35.3111653]
[1730572099898,3.64886712,163.36,163.32,35.3111653]
[1730572100207,3.64886712,163.35,163.33,11.5342813]
[1730572100384,27.8941813,163.41,163.35,23.776884]
[1730572100590,27.8941813,163.41,163.35,35.3111653]
[1730572100591,3.64950547,163.4,163.35,35.3111653]
[1730572100922,3.64950547,163.39,163.35,35.3111653]
[1730572101098,3.64950547,163.38,163.37,11.5342813]
[1730572101278,3.64950547,163.38,163.37,35.3111653]
[1730572102586,11.5342813,163.43,163.37,35.3111653]
[1730572102901,3.64898348,163.38,163.37,35.3111653]
[1730572104208,3.64898348,163.38,163.37,23.776884]
[1730572105099,11.5342813,163.42,163.37,23.776884]
[1730572105289,15.18310218,163.41,163.37,23.776884]
[1730572105804,11.5342813,163.41,163.37,23.776884]
[1730572106886,11.5342813,163.43,163.38,23.776884]
[1730572107684,15.18488153,163.42,163.37,23.776884]
[1730572107888,3.65060023,163.41,163.37,35.3111653]
[1730572108102,3.65060023,163.4,163.38,11.5342813]
[1730572108311,11.5342813,163.43,163.39,23.776884]
[1730572108512,3.6504983,163.42,163.39,23.776884]
[1730572108688,3.65051122,163.41,163.39,23.776884]
[1730572108888,3.65051122,163.4,163.39,23.776884]
[1730572110505,3.65051122,163.4,163.39,35.3111653]
[1730572110814,11.5342813,163.44,163.39,35.3111653]
[1730572111107,11.5342813,163.42,163.36,11.5342813]
[1730572111415,11.5342813,163.41,163.37,23.776884]
[1730572112309,11.5342813,163.42,163.37,23.776884]
[1730572113617,11.5342813,163.4,163.37,23.776884]
[1730572113804,11.5342813,163.41,163.36,23.776884]
[1730572114198,11.5342813,163.41,163.37,23.776884]
[1730572116819,11.5342813,163.42,163.37,23.776884]
[1730572119422,11.5342813,163.42,163.37,35.3111653]
[1730572119813,11.5342813,163.43,163.37,35.3111653]
[1730572120014,28.1167813,163.45,163.4,23.776884]
[1730572120519,11.5342813,163.43,163.39,23.776884]
[1730572121125,11.5342813,163.43,163.38,51.7116653]
[1730572121804,11.5342813,163.44,163.38,51.7116653]
[1730572122217,11.5342813,163.43,163.38,51.7116653]
[1730572123836,11.5342813,163.43,163.38,35.3111653]
[1730572124510,11.5342813,163.43,163.38,23.776884]
[1730572126624,11.5342813,163.43,163.38,35.3111653]
[1730572126809,11.5342813,163.44,163.4,23.776884]
[1730572129518,11.5342813,163.44,163.38,11.5342813]
[1730572129519,11.5342813,163.44,163.39,23.776884]